bitfinex-derivatives/quotes_SOLF0:USTF0_20240827
["timestamp","ask_amount","ask_price","bid_price","bid_amount"]
[1724779301808,4.5067,153.83,153.76,9.0]
[1724779302319,4.5067,153.83,153.78,3.251]
[1724779302710,0.0441931,153.82,153.79,0.0483406]
[1724779303017,0.0441931,153.82,153.8,3.2506]
[1724779303413,3.2494,153.87,153.81,10.2772]
[1724779304413,0.0430969,153.86,153.83,3.2501]
[1724779307525,0.0430969,153.86,153.84,3.2499]
[1724779310221,0.0430969,153.86,153.85,3.2497]
[1724779316036,0.0430969,153.86,153.82,0.0437989]
[1724779316943,0.0430969,153.86,153.82,9.0437989]
[1724779317536,0.0430969,153.86,153.83,3.2499]
[1724779317843,0.0430969,153.86,153.82,0.0437989]
[1724779318236,3.2497,153.85,153.83,3.2501]
[1724779318443,0.0430969,153.86,153.83,3.2501]
[1724779318945,0.0430969,153.86,153.83,9.0]
[1724779319533,3.2926969,153.86,153.83,12.25]
[1724779319939,3.2499,153.85,153.82,0.0437989]
[1724779320143,0.0430969,153.86,153.82,9.0437989]
[1724779320342,0.0430969,153.86,153.83,9.0]
[1724779320544,0.0430969,153.86,153.85,9.0]
[1724779321638,0.0430969,153.86,153.85,12.2497]
[1724779322148,3.2486,153.91,153.87,3.2491]
[1724779322345,3.2486,153.91,153.88,9.0]
[1724779322539,3.2483,153.92,153.88,9.0]
[1724779322740,235.0,153.98,153.9,9.0]
[1724779323044,235.0,153.98,153.86,3.32910734]
[1724779323045,0.04425841,153.95,153.92,0.04644423]
[1724779323644,3.2478,153.94,153.92,0.04644423]
[1724779325244,3.29195841,153.95,153.92,0.04644423]
[1724779326543,0.04425841,153.95,153.93,3.248]
[1724779329254,0.04425841,153.95,153.92,0.04644423]
[1724779329255,0.04425841,153.95,153.94,3.2478]
[1724779330354,2.4761,154.03,153.97,3.247]
[1724779330552,0.69162589,154.02,153.97,3.247]
[1724779330943,3.2466,154.0,153.96,3.2473]
[1724779331348,3.2466,154.0,153.96,3.29531827]
[1724779331349,3.2882011,154.0,153.96,3.29531827]
[1724779332244,3.2469,153.99,153.96,0.04801827]
[1724779333757,0.0416011,154.0,153.96,3.29521827]
[1724779334257,3.2883011,154.0,153.96,3.29521827]
[1724779334458,0.0416011,154.0,153.96,0.04801827]
[1724779335152,3.2468,153.99,153.96,0.04801827]
[1724779336160,0.0416011,154.0,153.97,3.2471]
[1724779337459,3.2881011,154.0,153.96,3.29531827]
[1724779337655,0.0416011,154.0,153.96,0.04801827]
[1724779339463,3.2883011,154.0,153.96,25.76531827]
[1724779339857,0.0416011,154.0,153.97,3.247]
[1724779340053,0.0416011,154.0,153.96,22.51801827]
[1724779340363,0.0416011,154.0,153.98,22.47]
[1724779340661,1.3289,154.04,153.98,22.47]
[1724779340860,1.3289,154.04,153.98,26.61]
[1724779341164,4.5747,154.04,154.0,3.2464]
[1724779341360,339.0,154.13,154.03,22.47]
[1724779341554,339.0,154.13,154.06,0.04664223]
[1724779341555,0.04116903,154.09,154.06,0.04664223]
[1724779341757,3.245,154.08,154.06,0.04664223]
[1724779341959,0.04116903,154.09,154.06,0.04664223]
[1724779342357,0.73373528,154.09,154.06,0.04664223]
[1724779342664,3.2455,154.05,154.01,4.14]
[1724779342856,3.2455,154.05,153.99,4.14]
[1724779343059,3.2455,154.05,154.0,3.2464]
[1724779343566,0.04420945,154.04,154.01,0.04342346]
[1724779346360,0.04420945,154.04,154.01,3.28972346]
[1724779347171,0.04420945,154.04,154.02,3.246]
[1724779347664,0.04420945,154.04,154.03,25.7159]
[1724779347974,0.04420945,154.04,154.03,12.2159]
[1724779348259,3.2447,154.09,154.06,8.97]
[1724779349165,0.04605821,154.09,154.06,12.26439211]
[1724779349960,0.04605821,154.09,154.06,0.04909211]
[1724779350959,3.29085821,154.09,154.06,0.04909211]
[1724779351465,0.04605821,154.09,154.06,0.04909211]
[1724779352560,3.2451,154.07,154.06,0.04909211]
[1724779354765,4.14,154.07,153.92,53.9399208]
[1724779354962,22.43,154.05,153.94,22.43]
[1724779355165,4.14,154.07,153.93,3.248]
[1724779355166,22.43,154.03,153.93,3.248]
[1724779355360,22.43,154.03,153.91,22.43]
[1724779355361,25.68184982,154.03,153.91,22.43]
[1724779355566,25.68184982,154.03,153.91,26.57]
[1724779355863,0.0431139,153.99,153.95,0.04473822]
[1724779356069,0.0431139,153.99,153.95,22.47473822]
[1724779356769,0.0431139,153.99,153.97,22.43]
[1724779357160,0.0431139,153.99,153.98,3.247]
[1724779360972,0.0431139,153.99,153.97,25.677]
[1724779361172,0.0431139,153.99,153.97,3.247]
[1724779361768,0.0431139,153.99,153.98,3.247]
[1724779362368,0.0431139,153.99,153.96,4.14]
[1724779363971,0.0431139,153.99,153.97,3.247]
[1724779365871,0.0431139,153.99,153.98,3.247]
[1724779369673,0.0431139,153.99,153.98,25.677]
[1724779372474,0.0431139,153.99,153.98,22.43]
[1724779372671,0.0431139,153.99,153.96,4.14]
[1724779373875,1.2774,154.06,153.97,22.43]
[1724779374074,1.2774,154.06,153.99,22.43]
[1724779374369,3.2456,154.05,154.01,3.2462]
[1724779374573,1.2774,154.06,154.01,3.2462]
[1724779374978,0.04390632,154.05,154.02,0.04392937]
[1724779376083,3.2458,154.04,154.02,0.04392937]
[1724779376271,0.04390632,154.05,154.02,0.04392937]
[1724779376677,3.2457,154.04,154.02,0.04392937]
[1724779378487,3.2459,154.03,154.02,0.04392937]
[1724779378977,3.2468,153.99,153.95,22.43]
[1724779379182,5.5152,154.04,153.96,3.2474]
[1724779379380,1.2886,154.03,153.96,3.2474]
[1724779379776,26.94919434,154.03,153.96,3.2474]
[1724779379976,0.04284448,154.01,153.98,0.0435408]
[1724779380176,3.26726799,154.01,153.98,0.0435408]
[1724779380481,3.2468,153.99,153.98,0.0435408]
[1724779385378,1.277,154.0,153.91,4.2]
[1724779385379,3.2474,153.96,153.91,4.2]
[1724779385581,22.43,153.99,153.88,1.2446]
[1724779385777,4.89412747,153.98,153.88,1.2446]
[1724779385972,3.2476,153.95,153.89,22.43]
[1724779386172,3.2476,153.95,153.91,3.2484]
[1724779386376,0.04319377,153.95,153.91,0.0433196]
[1724779386875,3.2482,153.92,153.91,0.0433196]
[1724779395992,3.2481,153.93,153.91,0.0433196]
[1724779396890,3.2482,153.92,153.91,0.0433196]
[1724779398690,7.4481,153.93,153.91,0.0433196]
[1724779400195,4.5047,153.94,153.91,0.0433196]
[1724779400398,1.2568,153.94,153.91,0.0433196]
[1724779401098,3.248,153.93,153.91,0.0433196]
[1724779402089,12.228,153.93,153.91,0.0433196]
[1724779402291,3.2482,153.92,153.91,0.0433196]
[1724779405290,4.5048,153.94,153.91,0.0433196]
[1724779406195,3.2481,153.93,153.91,0.0433196]
[1724779406397,10.2368,153.94,153.91,0.0433196]
[1724779406790,3.2482,153.92,153.91,0.0433196]
[1724779408596,12.2282,153.92,153.91,0.0433196]
[1724779408794,3.2491,153.89,153.83,14.487]
[1724779408990,8.98,153.9,153.83,1.307]
[1724779409296,1.2568,153.94,153.84,3.2498]
[1724779409297,8.98,153.88,153.84,3.2498]
[1724779409501,12.2292,153.88,153.83,1.307]
[1724779409902,0.04558446,153.87,153.84,0.04697468]
[1724779410301,0.04558446,153.87,153.85,3.2497]
[1724779412893,0.04558446,153.87,153.86,3.2495]
[1724779430309,0.04558446,153.87,153.85,3.2496]
[1724779430515,9.02558446,153.87,153.84,0.04697468]
[1724779431020,12.27498446,153.87,153.85,3.2497]
[1724779431222,9.02558446,153.87,153.84,0.04697468]
[1724779431416,3.2497,153.85,153.84,0.04697468]
[1724779433217,3.2496,153.86,153.84,0.04697468]
[1724779433624,9.02558446,153.87,153.84,0.04697468]
[1724779433817,12.27498446,153.87,153.84,0.04697468]
[1724779434024,9.02558446,153.87,153.84,0.04697468]
[1724779434227,9.02558446,153.87,153.84,3.29677468]
[1724779434626,12.27498446,153.87,153.84,0.04697468]
[1724779434818,3.29498446,153.87,153.84,0.04697468]
[1724779435429,3.29498446,153.87,153.84,3.29677468]
[1724779437234,3.29498446,153.87,153.85,3.2497]
[1724779437235,0.04558446,153.87,153.85,3.2497]
[1724779438135,0.04558446,153.87,153.84,3.29677468]
[1724779440354,0.04558446,153.87,153.85,3.2497]
[1724779440524,0.04558446,153.87,153.84,0.04697468]
[1724779441225,0.04558446,153.87,153.86,3.2495]
[1724779441936,9.02558446,153.87,153.84,0.04697468]
[1724779442127,8.98,153.85,153.84,0.04697468]
[1724779442329,8.98,153.85,153.76,64.68491869]
[1724779442537,8.98,153.85,153.76,68.82491869]
[1724779442728,8.98,153.81,153.76,64.68491869]
[1724779442931,8.98,153.8,153.74,1.2186]
[1724779443135,8.98,153.78,153.74,1.2186]
[1724779443438,9.02883106,153.78,153.74,0.04153132]
[1724779443627,12.28013106,153.78,153.74,3.29353132]
[1724779444030,3.30013106,153.78,153.74,3.29353132]
[1724779444231,0.04883106,153.78,153.75,3.2517]
[1724779445527,0.04883106,153.78,153.74,0.04153132]
[1724779446127,0.04883106,153.78,153.77,3.2514]
[1724779462352,2.4796,153.86,153.82,3.2502]
[1724779462551,2.4796,153.86,153.78,3.27957338]
[1724779462750,1.2065,153.89,153.8,22.5]
[1724779462949,5.3465,153.89,153.8,22.5]
[1724779463143,3.2493,153.87,153.8,22.5]
[1724779463347,0.04894367,153.85,153.84,3.2498]
[1724779465947,0.04894367,153.85,153.84,12.2298]
[1724779467757,0.04894367,153.85,153.84,3.2498]
[1724779473263,2.5392,153.95,153.83,8.98]
[1724779473567,16.9949,153.95,153.88,8.98]
[1724779474268,9.02534991,153.93,153.9,0.04780948]
[1724779474656,8.98,153.92,153.9,0.04780948]
[1724779475659,8.98,153.92,153.86,3.2495]
[1724779475860,8.98,153.89,153.83,13.12]
[1724779476072,8.98,153.89,153.85,3.2496]
[1724779476257,8.98,153.89,153.83,4.14]
[1724779476765,0.04127204,153.88,153.85,3.2496]
[1724779477257,0.04127204,153.88,153.84,0.0419579]
[1724779477461,0.04127204,153.88,153.86,3.2493]
[1724779478268,0.04127204,153.88,153.87,3.2493]
[1724779499199,0.04127204,153.88,153.86,3.2494]
[1724779499494,9.02127204,153.88,153.84,0.0419579]
[1724779500293,9.02127204,153.88,153.85,3.2496]
[1724779500294,3.2494,153.87,153.85,3.2496]
[1724779500695,9.02127204,153.88,153.85,3.2496]
[1724779500885,3.29047204,153.88,153.86,3.2495]
[1724779501293,0.04127204,153.88,153.86,3.2495]
[1724779501694,0.04127204,153.88,153.87,3.2493]
[1724779503404,0.04127204,153.88,153.86,3.2495]
[1724779503599,0.04127204,153.88,153.84,0.0419579]
[1724779504102,3.29047204,153.88,153.85,3.2495]
[1724779507104,3.29047204,153.88,153.86,3.2495]
[1724779507604,0.04127204,153.88,153.84,0.0419579]
[1724779509307,0.04127204,153.88,153.86,3.2494]
[1724779510004,0.04127204,153.88,153.87,3.2493]
[1724779514106,0.04127204,153.88,153.87,25.7093]
[1724779514513,0.04127204,153.88,153.87,29.8493]
[1724779514712,0.04127204,153.88,153.87,33.08665863]
[1724779516708,0.04127204,153.88,153.87,29.8493]
[1724779517511,1.3221,153.97,153.87,31.31366893]
[1724779517715,1.3221,153.97,153.9,22.46]
[1724779517914,1.3221,153.97,153.93,3.2479]
[1724779517915,3.2474,153.96,153.93,3.2479]
[1724779518108,1.3221,153.97,153.88,22.46]
[1724779518308,0.04471597,153.94,153.91,0.0454811]
[1724779518613,0.04471597,153.94,153.92,3.2481]
[1724779520615,0.04471597,153.94,153.93,3.248]
[1724779524018,4.5752,154.02,153.99,3.2467]
[1724779524413,3.2464,154.01,153.99,3.2467]
[1724779524716,1.329,154.02,153.94,22.46]
[1724779524911,0.04616424,154.0,153.96,0.04943695]
[1724779525118,0.04616424,154.0,153.99,3.2468]
[1724779529514,0.04616424,154.0,153.99,12.2268]
[1724779530118,10.2821,154.08,153.98,4.14]
[1724779530313,10.2821,154.08,153.99,8.98]
[1724779530716,3.2453,154.06,154.03,3.2458]
[1724779531016,0.04289185,154.06,154.03,0.04882389]
[1724779532311,0.04289185,154.06,154.04,3.2457]
[1724779532514,0.04289185,154.06,154.03,0.04882389]
[1724779533523,3.28819185,154.06,154.03,3.29462389]
[1724779536316,0.04289185,154.06,154.03,0.04882389]
[1724779536720,0.04289185,154.06,154.03,4.18882389]
[1724779536922,0.04289185,154.06,154.05,3.2455]
[1724779542024,0.04289185,154.06,154.03,0.04882389]
[1724779543335,3.2457,154.04,154.03,0.04882389]
[1724779548136,0.04289185,154.06,154.03,0.04882389]
[1724779548830,3.28839185,154.06,154.03,0.04882389]
[1724779549226,0.04289185,154.06,154.03,0.04882389]
[1724779550334,3.2455,154.05,154.03,0.04882389]
[1724779551637,0.04289185,154.06,154.03,0.04882389]
[1724779552134,9.02289185,154.06,154.03,0.04882389]
[1724779552340,3.2457,154.04,154.03,0.04882389]
[1724779555533,3.2456,154.05,154.03,9.02882389]
[1724779555733,0.04289185,154.06,154.03,9.02882389]
[1724779556037,0.04289185,154.06,154.03,0.04882389]
[1724779556230,3.2455,154.05,154.03,0.04882389]
[1724779556434,0.04289185,154.06,154.03,0.04882389]
[1724779556834,3.2456,154.05,154.03,0.04882389]
[1724779557236,0.04289185,154.06,154.03,0.04882389]
[1724779557438,3.2456,154.05,154.03,0.04882389]
[1724779557634,0.04289185,154.06,154.03,0.04882389]
[1724779558236,3.2457,154.04,154.03,0.04882389]
[1724779562037,3.2456,154.05,154.03,0.04882389]
[1724779562237,0.04289185,154.06,154.03,0.04882389]
[1724779562742,0.04289185,154.06,154.03,3.29462389]
[1724779564139,0.04289185,154.06,154.05,3.2455]
[1724779564542,0.69463827,154.12,154.06,22.44]
[1724779564745,26.58,154.15,154.06,22.44]
[1724779564942,0.69463537,154.14,154.06,22.44]
[1724779565449,0.04699401,154.12,154.08,0.04464361]
[1724779567549,3.2446,154.09,154.08,0.04464361]
[1724779572456,3.93933537,154.09,154.08,0.04464361]
[1724779573556,3.2446,154.09,154.08,0.04464361]
[1724779573758,3.93934193,154.09,154.08,0.04464361]
[1724779574659,3.2446,154.09,154.08,0.04464361]
[1724779577964,3.2445,154.1,154.08,0.04464361]
[1724779578161,1.21,154.11,154.08,0.04464361]
[1724779578463,0.69467081,154.1,154.08,0.04464361]
[1724779579764,4.4544,154.11,154.08,0.04464361]
[1724779579965,4.4544,154.11,154.08,3.28944361]
[1724779580163,3.2444,154.11,154.08,3.28944361]
[1724779580355,3.2444,154.11,154.08,0.04464361]
[1724779582467,0.04699401,154.12,154.09,3.2446]
[1724779582670,0.04699401,154.12,154.08,0.04464361]
[1724779582969,3.29109401,154.12,154.08,3.28934361]
[1724779583461,0.04699401,154.12,154.08,22.48464361]
[1724779583658,0.04699401,154.12,154.09,3.2445]
[1724779583861,0.04699401,154.12,154.08,22.48464361]
[1724779584262,0.04699401,154.12,154.11,12.2142]
[1724779585962,0.69421046,154.18,154.13,3.2437]
[1724779586157,1.2951,154.2,154.13,3.2437]
[1724779586358,0.6941968,154.19,154.13,3.2437]
[1724779586776,3.2431,154.17,154.13,3.2437]
[1724779586963,3.2930326,154.17,154.13,3.29329403]
[1724779587365,0.0499326,154.17,154.13,0.04959403]
[1724779589270,3.2930326,154.17,154.13,3.29329403]
[1724779589769,3.2930326,154.17,154.13,0.04959403]
[1724779590265,3.2930326,154.17,154.13,3.29329403]
[1724779590973,3.2930326,154.17,154.14,3.2436]
[1724779592179,3.2930326,154.17,154.13,3.29329403]
[1724779593170,3.2930326,154.17,154.14,3.2434]
[1724779593171,0.0499326,154.17,154.14,3.2434]
[1724779593769,0.0499326,154.17,154.14,22.43]
[1724779594363,0.0499326,154.17,154.15,3.2433]
[1724779597770,3.23838567,154.24,154.15,3.2433]
[1724779597973,0.69389069,154.23,154.18,22.43]
[1724779598279,1.3237,154.25,154.2,22.43]
[1724779598576,0.69370121,154.24,154.2,22.43]
[1724779598776,3.2415,154.24,154.21,3.2421]
[1724779598976,3.29115498,154.24,154.21,3.2421]
[1724779599774,0.04965498,154.24,154.22,22.43]
[1724779601475,0.04965498,154.24,154.23,3.2417]
[1724779601777,0.04965498,154.24,154.22,22.43]
[1724779602569,0.04965498,154.24,154.22,25.6718]
[1724779602770,0.04965498,154.24,154.22,22.43]
[1724779603182,0.04965498,154.24,154.22,25.6718]
[1724779603874,0.04965498,154.24,154.23,3.2417]
[1724779604078,0.04965498,154.24,154.23,7.3817]
[1724779604484,0.69344798,154.26,154.25,3.2413]
[1724779604780,1.93715262,154.32,154.25,25.6713]
[1724779604975,3.2402,154.3,154.26,3.241]
[1724779605181,0.69325248,154.29,154.26,3.241]
[1724779605380,0.69325248,154.29,154.26,3.28820971]
[1724779605381,0.73847545,154.29,154.26,3.28820971]
[1724779606282,3.97907545,154.29,154.26,0.04720971]
[1724779606584,0.69325248,154.28,154.26,0.04720971]
[1724779606783,0.04522297,154.29,154.26,0.04720971]
[1724779608784,3.2408,154.28,154.26,0.04720971]
[1724779612285,3.2409,154.27,154.26,0.04720971]
[1724779616509,0.69339342,154.27,154.11,6.4881]
[1724779616680,8.97,154.24,154.17,8.97]
[1724779617288,8.97,154.23,154.16,8.97]
[1724779617492,8.97,154.23,154.15,4.14]
[1724779617493,0.04528226,154.22,154.19,0.04739516]
[1724779617691,0.04528226,154.22,154.19,9.01739516]
[1724779618194,0.04528226,154.22,154.19,0.04739516]
[1724779618393,3.2423,154.21,154.19,0.04739516]
[1724779620494,0.04528226,154.22,154.19,0.04739516]
[1724779620990,0.04528226,154.22,154.2,22.41]
[1724779621989,0.04528226,154.22,154.2,25.6523]
[1724779622593,0.04528226,154.22,154.21,3.2421]
[1724779622993,0.04528226,154.22,154.21,25.6521]
[1724779623592,1.2219,154.27,154.23,3.2416]
[1724779623994,1.2219,154.27,154.21,22.41]
[1724779624394,76.7117676,154.3,154.25,3.2413]
[1724779624599,0.73625815,154.29,154.26,0.04629146]
[1724779624798,0.042997,154.29,154.26,0.04629146]
[1724779624986,0.73618655,154.29,154.26,0.04629146]
[1724779625393,0.042997,154.29,154.28,22.41]
[1724779625590,0.042997,154.29,154.28,25.6506]
[1724779626192,1.217,154.33,154.3,3.2402]
[1724779627190,1.25871408,154.33,154.3,3.28426696]
[1724779628194,1.25871408,154.33,154.3,0.04406696]
[1724779628195,0.04171408,154.33,154.3,0.04406696]
[1724779628801,0.04171408,154.33,154.3,3.28416696]
[1724779629204,0.04171408,154.33,154.3,3.28426696]
[1724779629503,0.04171408,154.33,154.3,0.04406696]
[1724779630304,0.04171408,154.33,154.31,22.41]
[1724779630505,0.04171408,154.33,154.32,3.2398]
[1724779631602,232.504,154.5,154.32,22.41]
[1724779631810,1.3224,154.42,154.35,22.41]
[1724779632105,0.6927506,154.41,154.38,22.41]
[1724779632700,0.04819946,154.41,154.38,22.45367267]
[1724779632900,0.04819946,154.41,154.38,25.69207267]
[1724779633604,0.04819946,154.41,154.38,0.04367267]
[1724779633809,0.68711629,154.41,154.38,0.04367267]
[1724779634609,3.92521629,154.41,154.38,0.04367267]
[1724779634807,3.28629946,154.41,154.38,0.04367267]
[1724779635109,0.04819946,154.41,154.38,0.04367267]
[1724779635406,3.2381,154.4,154.38,0.04367267]
[1724779635705,0.04819946,154.41,154.38,0.04367267]
[1724779635903,3.92519487,154.41,154.38,0.04367267]
[1724779636101,3.28629946,154.41,154.38,0.04367267]
[1724779636701,0.04819946,154.41,154.38,22.45367267]
[1724779637005,0.68709736,154.41,154.38,22.45367267]
[1724779637211,0.04819946,154.41,154.38,22.45367267]
[1724779638700,0.04819946,154.41,154.39,3.2382]
[1724779638907,0.04819946,154.41,154.38,22.45367267]
[1724779640211,0.04819946,154.41,154.38,25.69207267]
[1724779642203,0.04819946,154.41,154.38,22.45367267]
[1724779642612,3.28619946,154.41,154.38,22.45367267]
[1724779642813,1.3106,154.47,154.4,22.41]
[1724779643018,2.5921,154.52,154.45,22.41]
[1724779643204,2.5921,154.52,154.41,4.14]
[1724779643205,0.63829704,154.51,154.43,22.41]
[1724779643508,0.63838334,154.5,154.41,7.3779]
[1724779643706,0.63838334,154.5,154.41,29.7879]
[1724779643913,3.237,154.46,154.44,0.04245085]
[1724779644308,3.2368,154.47,154.44,0.04245085]
[1724779645014,3.2366,154.48,154.44,0.04245085]
[1724779645410,3.2366,154.48,154.44,3.27965085]
[1724779646222,3.2367,154.47,154.44,0.04245085]
[1724779649815,1.2938,154.51,154.44,0.04245085]
[1724779650010,0.63825716,154.5,154.45,22.41]
[1724779651311,3.2365,154.48,154.45,22.41]
[1724779652112,3.2368,154.47,154.44,0.04245085]
[1724779652415,1.2938,154.51,154.44,0.04245085]
[1724779652614,0.63825859,154.5,154.44,0.04245085]
[1724779653115,3.2371,154.45,154.44,0.04245085]
[1724779653319,3.21814884,154.46,154.39,4.14]
[1724779653515,1.2938,154.45,154.37,26.55]
[1724779653818,1.2938,154.45,154.37,22.41]
[1724779654415,0.0444813,154.43,154.39,0.04565492]
[1724779655612,0.6830674,154.43,154.39,0.04565492]
[1724779655819,0.6385861,154.42,154.39,0.04565492]
[1724779656021,0.6385861,154.41,154.39,0.04565492]
[1724779656212,0.0444813,154.43,154.39,0.04565492]
[1724779656519,0.68302655,154.43,154.39,0.04565492]
[1724779656814,0.63854525,154.42,154.39,0.04565492]
[1724779657020,0.63854525,154.41,154.39,0.04565492]
[1724779657421,0.0444813,154.43,154.39,0.04565492]
[1724779657920,3.2378,154.42,154.39,0.04565492]
[1724779658124,0.63852948,154.41,154.39,0.04565492]
[1724779659418,3.87642948,154.41,154.39,0.04565492]
[1724779659619,0.63855521,154.4,154.39,0.04565492]
[1724779660029,3.87665521,154.4,154.39,0.04565492]
[1724779661726,3.87675308,154.4,154.39,0.04565492]
[1724779662722,3.2381,154.4,154.39,0.04565492]
[1724779662924,4.1844813,154.43,154.39,0.04565492]
[1724779663721,3.2381,154.41,154.39,0.04565492]
[1724779665126,0.0444813,154.43,154.39,0.04565492]
[1724779665922,3.2381,154.4,154.39,0.04565492]
[1724779666522,0.0444813,154.43,154.33,26.55]
[1724779666523,22.41,154.42,154.33,4.14]
[1724779666723,1.2769,154.41,154.33,7.3795]
[1724779667021,1.2769,154.41,154.33,3.2395]
[1724779667425,0.0439494,154.39,154.35,0.04456987]
[1724779668825,3.2389,154.37,154.35,0.04456987]
[1724779669231,3.2387,154.38,154.35,0.04456987]
[1724779669729,3.2824494,154.39,154.35,3.28376987]
[1724779670131,0.0439494,154.39,154.35,0.04456987]
[1724779670438,0.0439494,154.39,154.35,25.74253808]
[1724779670624,0.0439494,154.39,154.35,22.45456987]
[1724779670822,0.0439494,154.39,154.36,3.2388]
[1724779671027,0.0439494,154.39,154.35,22.45456987]
[1724779671531,0.0439494,154.39,154.36,3.2389]
[1724779673337,0.0439494,154.39,154.37,3.2387]
[1724779674234,0.0439494,154.39,154.35,22.45456987]
[1724779675231,0.0439494,154.39,154.38,22.41]
[1724779675734,0.0439494,154.39,154.38,25.6485]
[1724779675931,1.2938,154.45,154.38,22.41]
[1724779676133,3.2371,154.45,154.41,3.2378]
[1724779677034,3.27915813,154.45,154.41,3.28343409]
[1724779678337,0.04205813,154.45,154.41,0.04563409]
[1724779678725,3.2376,154.43,154.41,0.04563409]
[1724779678933,0.04205813,154.45,154.41,0.04563409]
[1724779679436,3.2375,154.43,154.41,0.04563409]
[1724779680644,0.04205813,154.45,154.41,0.04563409]
[1724779681232,3.27925813,154.45,154.41,3.28353409]
[1724779681638,0.04205813,154.45,154.41,0.04563409]
[1724779681835,0.04205813,154.45,154.42,3.2377]
[1724779682044,0.04205813,154.45,154.41,0.04563409]
[1724779682441,3.27915813,154.45,154.41,3.28343409]
[1724779684446,0.04205813,154.45,154.41,22.45563409]
[1724779685538,0.04205813,154.45,154.43,22.41]
[1724779685744,0.04205813,154.45,154.44,3.2373]
[1724779688846,0.04205813,154.45,154.41,0.04563409]
[1724779689146,0.04205813,154.45,154.42,4.2]
[1724779689335,0.68018175,154.45,154.42,7.4376]
[1724779689537,0.04205813,154.45,154.42,7.4376]
[1724779690340,0.68026011,154.45,154.42,7.4376]
[1724779690538,0.04205813,154.45,154.42,7.4376]
[1724779690736,0.68025496,154.45,154.42,7.4376]
[1724779690945,0.68025496,154.45,154.42,3.2376]
[1724779691646,3.91735496,154.45,154.42,3.2376]
[1724779691949,3.27915813,154.45,154.41,3.28343409]
[1724779692144,0.63825417,154.44,154.41,3.28343409]
[1724779692449,3.2375,154.43,154.41,0.04563409]
[1724779692650,0.04205813,154.45,154.41,0.04563409]
[1724779692845,3.2373,154.44,154.41,0.04563409]
[1724779693050,0.04205813,154.45,154.42,3.2376]
[1724779694341,3.27915813,154.45,154.42,3.2376]
[1724779696951,3.27915813,154.45,154.41,3.28343409]
[1724779701144,3.2374,154.44,154.41,0.04563409]
[1724779701350,0.04205813,154.45,154.42,22.41]
[1724779701753,0.04205813,154.45,154.43,3.2374]
[1724779701951,0.04205813,154.45,154.44,8.96]
[1724779703359,0.04205813,154.45,154.44,12.1973]
[1724779703952,0.04205813,154.45,154.44,25.6273]
[1724779704956,0.63807256,154.51,154.46,3.2368]
[1724779705749,0.63807256,154.51,154.47,3.2366]
[1724779705952,2.4157,154.52,154.47,3.28230121]
[1724779706557,3.236,154.51,154.47,3.28230121]
[1724779706750,2.4157,154.52,154.47,22.43570121]
[1724779707151,5.6514,154.52,154.47,22.43570121]
[1724779707755,3.2359,154.51,154.47,25.67230121]
[1724779708757,3.2359,154.51,154.47,22.43570121]
[1724779709961,3.2359,154.51,154.47,0.04570121]
[1724779710262,2.4157,154.52,154.47,0.04570121]
[1724779711562,3.2365,154.48,154.47,0.04570121]
[1724779715263,3.87465269,154.48,154.47,0.04570121]
[1724779716563,3.2365,154.48,154.47,0.04570121]
[1724779716765,3.87465693,154.48,154.47,0.04570121]
[1724779720766,3.2365,154.48,154.47,0.04570121]
[1724779720967,3.87468463,154.48,154.47,0.04570121]
[1724779723668,3.2365,154.48,154.47,0.04570121]
[1724779723861,3.2374,154.44,154.41,22.39]
[1724779724560,3.2374,154.44,154.41,25.6279]
[1724779724765,3.2850953,154.44,154.41,25.67417056]
[1724779725064,3.2375,154.43,154.41,22.43627056]
[1724779725267,0.0476953,154.44,154.41,0.04627056]
[1724779725769,3.2850953,154.44,154.41,0.04627056]
[1724779726568,3.2377,154.42,154.41,0.04627056]
[1724779727677,0.0476953,154.44,154.41,8.99627056]
[1724779727865,0.0476953,154.44,154.42,8.95]
[1724779728265,0.0476953,154.44,154.41,0.04627056]
[1724779728567,0.0476953,154.44,154.41,4.18627056]
[1724779728769,3.2850953,154.44,154.41,0.04627056]
[1724779729561,0.0476953,154.44,154.41,0.04627056]
[1724779729767,8.9976953,154.44,154.41,0.04627056]
[1724779730167,3.2376,154.43,154.41,0.04627056]